bitfinex/quotes_ETHUSD_20241223
["timestamp","ask_amount","ask_price","bid_price","bid_amount"]
[1734977491311,3.292942,3340.5,3339.6,0.8131]
[1734977491502,2.99374,3340.3,3339.9,0.08427628]
[1734977491701,2.99387,3340.2,3339.6,0.8131]
[1734977492061,2.99367,3340.4,3339.7,0.0843912]
[1734977492492,2.99367,3340.4,3339.6,0.8131]
[1734977492691,0.6293022,3340.4,3339.8,0.08433374]
[1734977492896,2.99383,3340.2,3339.6,0.8131]
[1734977493192,3.6229822,3340.4,3339.9,0.08427628]
[1734977493397,3.6229822,3340.4,3339.6,0.8131]
[1734977493559,3.6229822,3340.4,3340.0,0.08421882]
[1734977493759,3.0,3340.6,3340.0,0.08421882]
[1734977494094,3.0,3340.6,3340.1,0.08501503]
[1734977494566,3.0,3340.6,3339.6,3.80745]
[1734977494784,1.21143363,3341.4,3340.2,0.08495227]
[1734977494993,1.21143363,3341.4,3340.0,2.994]
[1734977494994,3.0,3341.0,3340.0,2.994]
[1734977495193,2.99294,3341.2,3340.1,0.8131]
[1734977495401,3.0,3341.1,3340.1,0.89809381]
[1734977495597,0.7991,3341.4,3340.1,0.89809381]
[1734977495941,0.40838098,3341.3,3340.1,0.8131]
[1734977496074,2.9932,3340.9,3340.1,0.8131]
[1734977496712,2.9932,3340.9,3340.2,0.08478254]
[1734977497388,2.99303,3341.1,3340.2,0.08478254]
[1734977497593,3.0,3341.0,3340.2,0.08478254]
[1734977497801,0.7991,3341.4,3340.2,3.07861254]
[1734977497978,0.8295,3341.7,3340.4,0.8105]
[1734977498171,2.99275,3341.5,3340.5,0.0845996]
[1734977498591,2.99285,3341.3,3340.5,0.0845996]
[1734977499010,0.299285,3341.3,3340.5,0.0845996]
[1734977499268,3.8295,3341.7,3340.5,0.0845996]
[1734977499269,3.0,3341.5,3340.5,0.0845996]
[1734977499598,5.99347,3340.6,3340.5,0.0845996]
[1734977499905,5.99347,3340.6,3340.0,0.7853]
[1734977500214,2.99301,3341.2,3340.5,0.08449884]
[1734977500429,2.99274,3341.5,3340.4,0.7638]
[1734977500633,3.0,3341.2,3340.5,0.4104591]
[1734977500801,2.99304,3341.1,3340.5,0.4104591]
[1734977500996,2.99304,3341.1,3340.4,0.7638]
[1734977501252,2.99313,3341.0,3340.6,0.08452095]
[1734977501463,3.0,3341.2,3340.5,0.08457839]
[1734977501636,2.99329,3340.8,3340.7,0.08447943]
[1734977501952,0.8295,3341.3,3340.3,0.7655]
[1734977501953,3.0,3340.9,3340.3,0.7655]
[1734977502313,0.38754103,3341.2,3340.4,0.08442367]
[1734977502698,3.8295,3341.8,3340.4,2.9936]
[1734977503099,3.0,3341.2,3340.5,0.08436092]
[1734977503332,3.0,3341.2,3340.3,0.7655]
[1734977503562,2.99304,3341.1,3340.6,0.08425576]
[1734977503735,5.99261,3341.6,3340.3,0.7655]
[1734977503938,3.0,3341.4,3340.7,0.08419832]
[1734977504118,2.99297,3341.2,3340.3,0.7655]
[1734977504514,2.99297,3341.2,3340.4,0.08436533]
[1734977504755,3.8295,3341.8,3340.4,0.08436533]
[1734977504934,3.0,3341.6,3340.4,0.08436533]
[1734977505301,2.99302,3341.2,3340.4,0.08436533]
[1734977505507,5.99265,3341.6,3340.4,0.08436533]
[1734977505706,3.0,3341.4,3340.4,0.08436533]
[1734977506181,2.99333,3340.8,3340.4,0.08436533]
[1734977506346,2.99293,3341.2,3340.4,0.08436533]
[1734977506347,3.0,3341.2,3340.4,0.08436533]
[1734977506549,2.9931,3341.1,3340.4,0.08436533]
[1734977506769,3.0,3341.2,3340.4,0.46873586]
[1734977507276,2.99229,3342.0,3340.6,0.55]
[1734977507589,2.99229,3342.0,3341.0,0.7648]
[1734977508102,2.99229,3342.0,3341.1,0.08396333]
[1734977508292,2.02053363,3342.4,3341.1,0.08396333]
[1734977508293,2.99248,3341.8,3341.1,0.08396333]
[1734977508491,3.0,3341.7,3341.1,0.08396333]
[1734977508790,3.0,3342.1,3341.2,0.8084]
[1734977508953,0.50205336,3342.1,3341.2,0.8084]
[1734977509155,0.50205336,3342.1,3341.3,0.08357277]
[1734977509156,3.0,3341.8,3341.3,0.08357277]
[1734977509357,3.0,3341.8,3341.2,0.8084]
[1734977509576,3.0,3341.8,3341.4,0.08351006]
[1734977509888,2.99215,3342.1,3341.4,0.8292]
[1734977510255,2.99215,3342.1,3341.5,0.08329363]
[1734977510854,2.99171,3342.6,3341.5,0.08329363]
[1734977511069,5.9918,3342.5,3341.5,2.99259]
[1734977511275,5.9918,3342.5,3341.6,0.46539402]
[1734977511568,2.99202,3342.3,3341.6,0.08321502]
[1734977511993,2.99202,3342.3,3341.4,0.8292]
[1734977511994,3.8149,3342.8,3341.4,0.8292]
[1734977512143,3.8149,3342.8,3341.7,0.08315762]
[1734977512144,2.99211,3342.2,3341.7,0.08315762]
[1734977512339,0.8149,3342.8,3341.5,0.08327242]
[1734977512570,3.0,3342.4,3341.9,0.7665]
[1734977512937,3.0,3342.4,3342.0,0.08206836]
[1734977514997,3.0,3342.6,3342.0,0.08206836]
[1734977515301,3.0,3342.3,3341.9,0.7665]
[1734977516477,2.99207,3342.2,3341.9,0.7665]
[1734977516871,3.0,3342.3,3342.0,0.08199947]
[1734977518135,2.99213,3342.1,3342.0,0.08199947]
[1734977518341,2.99213,3342.1,3342.0,9.47e-06]
[1734977518342,8.86837987,3342.1,3342.0,9.47e-06]
[1734977518474,2.9923,3341.9,3341.1,0.751]
[1734977518668,3.0,3341.8,3341.1,0.751]
[1734977518982,2.99268,3341.5,3341.1,0.751]
[1734977519529,2.99268,3341.5,3341.2,0.07977865]
[1734977519723,3.291948,3341.5,3341.2,0.07977865]
[1734977519935,2.99284,3341.3,3341.2,0.07977865]
[1734977520421,2.99284,3341.3,3341.1,0.751]
[1734977520975,2.99284,3341.3,3341.2,0.08003835]
[1734977521512,2.99268,3341.5,3341.1,0.751]
[1734977521810,2.99252,3341.7,3340.1,0.7854]
[1734977521811,0.59852,3341.4,3340.1,0.7854]
[1734977522013,2.99284,3341.3,3341.2,0.08005956]
[1734977522222,0.59852,3341.4,3340.1,0.7854]
[1734977522440,2.99383,3340.2,3340.1,0.7854]
[1734977522935,0.8285,3340.9,3340.1,0.7854]
[1734977523100,2.99368,3340.4,3340.1,0.7854]
[1734977523508,2.99379,3340.3,3340.1,0.7854]
[1734977524430,1.21143363,3340.8,3340.1,0.7854]
[1734977524595,2.99341,3340.7,3340.1,0.7854]
[1734977525296,2.99347,3340.6,3340.1,0.7854]
[1734977525819,4.20446363,3341.1,3340.1,0.7854]
[1734977526022,2.99335,3340.8,3340.1,0.7854]
[1734977526220,0.40838098,3341.6,3340.1,3.77931]
[1734977526420,0.7991,3341.7,3340.4,3.77252]
[1734977526720,0.7991,3341.7,3339.8,15.02046587]
[1734977526721,2.99261,3341.6,3340.5,3.02347054]
[1734977526921,2.99219,3342.1,3340.7,3.77225]
[1734977527092,2.99219,3342.1,3340.9,0.7789]
[1734977527685,3.04641239,3342.3,3340.9,3.7721]
[1734977527881,0.40838098,3342.6,3341.0,0.7789]
[1734977528185,2.992,3342.3,3341.3,0.7789]
[1734977528382,1.2285777,3341.8,3341.3,0.7789]
[1734977528803,2.99265,3341.6,3341.3,0.7789]
[1734977529527,1.2285777,3341.8,3340.4,0.7789]
[1734977529528,4.2285777,3341.8,3340.4,0.7789]
[1734977529706,2.99272,3341.5,3340.4,0.7789]
[1734977529916,1.2285777,3341.8,3340.5,0.7789]
[1734977530240,3.0,3341.8,3340.6,0.7789]
[1734977530394,2.99231,3341.9,3340.8,0.7789]
[1734977530910,3.0,3342.0,3341.1,2.99302]
[1734977531090,3.0,3342.0,3341.2,0.7789]
[1734977531287,5.99224,3342.0,3341.2,0.7789]
[1734977531544,2.54054578,3341.8,3341.2,0.7789]
[1734977531743,2.54054578,3341.8,3341.3,0.8014]
[1734977532041,2.54054578,3341.8,3341.7,0.8014]
[1734977532361,2.9925,3341.7,3341.0,0.7748]
[1734977532629,3.10174478,3341.8,3341.0,0.7748]
[1734977533144,2.54054578,3341.8,3341.0,0.7748]
[1734977533440,5.99222,3342.0,3341.0,0.7748]
[1734977533598,2.99222,3342.0,3341.0,0.7748]
[1734977533808,2.99222,3342.0,3341.1,0.0753203]
[1734977534221,2.99222,3342.0,3341.2,0.829]
[1734977534536,2.99222,3342.0,3341.3,0.07519489]
[1734977535042,2.99231,3341.9,3341.2,0.829]
[1734977535494,2.99231,3341.9,3341.3,0.07526368]
[1734977535895,2.99231,3341.9,3341.2,0.829]
[1734977536404,2.99231,3341.9,3341.3,0.07526368]
[1734977536610,0.42208877,3341.9,3341.3,0.07526368]
[1734977536921,2.99258,3341.6,3341.3,0.07526368]
[1734977537391,2.99258,3341.6,3341.2,0.829]
[1734977537596,2.9923,3341.9,3341.2,0.829]
[1734977537793,2.99274,3341.5,3341.3,0.07491296]
[1734977538093,2.99274,3341.5,3341.2,0.829]
[1734977538294,2.99274,3341.5,3341.3,0.07495529]
[1734977538704,2.99274,3341.5,3341.2,0.829]
[1734977539126,2.99274,3341.5,3341.3,0.07500292]
[1734977539555,2.99274,3341.5,3341.2,0.829]
[1734977539755,2.9925,3341.7,3341.2,0.829]
[1734977540057,3.49373777,3341.7,3341.3,0.07501879]
[1734977540551,3.49373777,3341.7,3341.2,0.829]
[1734977540750,2.9925,3341.7,3341.2,0.829]
[1734977541212,1.2285777,3341.9,3341.2,0.829]
[1734977541415,2.99256,3341.7,3341.2,0.829]
[1734977541749,4.2209077,3341.9,3341.2,0.829]
[1734977541960,1.2285777,3341.9,3341.2,0.829]
[1734977542259,2.99276,3341.4,3341.2,0.829]
[1734977543550,4.2285777,3341.6,3341.2,0.829]
[1734977544105,7.2211877,3341.6,3341.2,0.829]
[1734977544415,4.2285777,3341.6,3341.2,0.829]
[1734977544812,3.0,3341.6,3341.2,0.829]
[1734977545130,1.2285777,3341.7,3341.2,0.829]
[1734977545331,1.2285777,3341.7,3341.2,1.211199]
[1734977545641,1.2285777,3341.7,3341.3,0.07521456]
[1734977546042,1.2285777,3341.7,3341.2,1.211199]
[1734977546198,1.2285777,3341.7,3341.4,0.07515716]
[1734977546399,1.01518116,3341.9,3341.3,0.07518281]
[1734977546852,1.01518116,3341.9,3341.3,0.42794918]
[1734977547655,1.01518116,3341.9,3341.8,2.99239]
[1734977547815,1.01518116,3341.9,3341.8,3.80119]
[1734977548020,1.01518116,3341.9,3341.8,3.87593234]
[1734977548756,0.18188116,3341.9,3341.8,3.87593234]
[1734977548948,1.2285777,3343.0,3342.2,2.99203]
[1734977549255,1.2285777,3343.0,3342.3,0.84813426]
[1734977549856,2.99182,3342.5,3342.3,0.84813426]
[1734977550057,2.99185,3342.5,3342.3,0.07443426]
[1734977550219,1.2285777,3343.0,3341.9,0.7737]
[1734977550556,2.25124753,3343.2,3342.3,3.76564]
[1734977550557,3.0,3343.2,3342.3,3.76564]
[1734977550719,4.2197077,3343.3,3342.4,0.376564]
[1734977550919,1.2285777,3343.3,3342.4,3.47238383]
[1734977551228,4.2196677,3343.3,3342.4,0.48053375]
[1734977551429,1.2285777,3343.3,3342.5,3.76545]
[1734977551629,4.2197077,3343.3,3342.6,0.07393945]
[1734977551836,4.2194777,3343.5,3342.6,0.07393945]
[1734977552154,1.2285777,3343.5,3342.8,0.7737]
[1734977552328,1.2285777,3343.5,3343.0,3.76502]
[1734977552535,1.2285777,3343.5,3343.2,0.7737]
[1734977552735,1.2285777,3343.6,3343.3,3.54098]
[1734977552949,1.2285777,3343.6,3343.4,0.7737]
[1734977553322,1.2285777,3343.6,3343.5,0.0731536]
[1734977553562,1.2285777,3343.6,3343.5,0.51193696]
[1734977554021,1.2285777,3343.6,3343.5,1.28563696]
[1734977554223,1.2285777,3344.4,3343.5,4.3877236]
[1734977554661,1.2285777,3344.4,3343.6,0.7737]
[1734977554977,1.2285777,3344.4,3343.7,0.07303893]
[1734977555966,2.98999,3344.5,3343.8,0.8223]
[1734977556130,3.40838098,3344.8,3343.8,0.8223]
[1734977556319,3.40838098,3344.8,3343.9,0.07292429]
[1734977556560,2.99058,3343.9,3343.2,0.7943]
[1734977556764,2.99062,3343.8,3343.2,0.7943]
[1734977557068,3.04084028,3344.1,3341.9,8.95]
[1734977557221,3.04084028,3344.1,3342.8,0.8293]
[1734977557222,2.99127,3343.1,3342.8,0.8293]
[1734977557560,5.99075,3343.7,3342.9,0.07165756]
[1734977557766,0.7765,3344.0,3342.9,0.10157198]
[1734977558059,2.99052,3343.9,3342.8,3.82077]
[1734977558264,2.99052,3343.9,3343.0,0.0716002]
[1734977558462,2.99052,3343.9,3342.8,3.82077]
[1734977558825,2.99052,3343.9,3342.9,0.07165756]
[1734977559026,2.99052,3343.9,3343.0,0.38924276]
[1734977559334,2.99052,3343.9,3343.1,0.07154285]
[1734977559539,3.7765,3344.3,3343.1,0.07154285]
[1734977559722,2.99045,3344.0,3343.2,0.8147]
[1734977560152,2.99045,3344.0,3343.3,0.07142817]
[1734977560356,2.99052,3343.9,3343.3,0.07142817]
[1734977560524,2.99052,3343.9,3343.2,0.8147]
[1734977560860,2.99035,3344.1,3343.3,0.07142817]
[1734977561071,2.99045,3344.0,3343.3,0.07142817]
[1734977561373,2.99096,3343.4,3343.3,0.07142817]
[1734977561661,2.99081,3343.6,3343.3,0.07142817]
[1734977561860,2.99081,3343.6,3342.8,0.7574]
[1734977562266,2.99055,3343.9,3342.9,0.07165756]
[1734977562426,5.99032,3344.2,3342.9,0.07165756]
[1734977562427,0.7915,3344.6,3343.2,0.8031]
[1734977562623,2.99055,3343.9,3343.2,0.8031]
[1734977562843,3.0,3344.3,3343.3,0.07142817]
[1734977563039,2.99043,3344.0,3343.3,0.07142817]
[1734977563257,2.99043,3344.0,3343.2,0.8031]
[1734977563423,2.99043,3344.0,3343.4,0.07137083]
[1734977563628,2.99043,3344.0,3343.5,0.07131349]
[1734977563882,2.99043,3344.0,3343.2,0.8031]
[1734977564084,0.72186477,3344.2,3343.2,0.8031]
[1734977564235,2.99096,3343.4,3343.3,0.07142817]
[1734977564633,0.47291223,3344.0,3342.8,0.8031]
[1734977564829,2.98976,3344.8,3343.7,0.7871]
[1734977565026,1.2285777,3345.0,3344.1,0.7871]
[1734977565267,1.2285777,3344.8,3344.1,0.7871]
[1734977565469,1.2285777,3344.8,3344.2,0.07091223]
[1734977565674,1.2285777,3344.8,3344.1,0.7871]
[1734977566064,1.2285777,3344.8,3344.1,1.16486]
[1734977566235,1.2285777,3344.8,3344.2,0.07091223]
[1734977566774,1.2285777,3344.8,3344.7,3.7781]
[1734977567132,3.1614643,3345.7,3344.7,3.84872572]
[1734977567372,3.1614643,3345.7,3344.7,0.85892572]
[1734977567373,0.1725343,3345.7,3344.7,0.85892572]
[1734977567671,0.1725343,3345.7,3344.8,2.98966]
[1734977567847,0.1725343,3345.7,3344.9,0.38485857]
[1734977568166,0.1725343,3345.7,3345.0,3.83461181]
[1734977568546,0.1725343,3345.7,3345.1,0.06942451]
[1734977570648,0.1725343,3345.7,3345.0,0.8152]
[1734977571053,0.1725343,3345.7,3345.1,0.06940866]
[1734977571259,0.1725343,3345.7,3345.1,0.45683153]
[1734977571563,2.98901,3345.6,3345.1,0.06940866]
[1734977572084,2.98926,3345.4,3345.1,0.06940866]
[1734977572517,2.98935,3345.2,3345.1,0.06940866]
[1734977573011,2.98952,3345.1,3344.3,0.8091]
[1734977573180,2.98953,3345.0,3344.3,0.8091]
[1734977573382,2.98973,3344.8,3344.4,0.06956151]
[1734977573606,2.98935,3345.2,3344.3,0.8091]
[1734977573802,3.0,3344.8,3343.9,0.7704]
[1734977573979,3.0,3345.1,3343.9,0.7704]
[1734977574200,3.0,3345.1,3344.0,0.06979075]
[1734977574514,2.98989,3344.6,3344.0,0.06979075]
[1734977574725,0.7623,3345.6,3344.1,3.79374028]
[1734977574865,0.7623,3345.6,3344.2,1.16914878]
[1734977575068,2.98923,3345.4,3344.3,0.06961882]
[1734977575302,2.98946,3345.1,3344.3,0.06961882]
[1734977575871,2.98942,3345.2,3344.3,0.06961882]
[1734977576060,2.98948,3345.1,3344.3,0.06961882]
[1734977576567,2.98956,3345.0,3344.3,0.06961882]
[1734977577231,2.98917,3345.5,3344.4,0.7529]
[1734977577372,0.61617043,3345.5,3344.4,0.7529]
[1734977577722,2.98961,3345.0,3344.5,0.06950421]
[1734977577884,3.0,3345.1,3344.5,0.06950421]
[1734977578206,2.9898,3344.7,3344.4,0.7529]
[1734977578764,2.98991,3344.6,3343.7,0.7611]
[1734977578977,2.98991,3344.6,3343.7,1.436298]
[1734977579284,2.98973,3344.8,3343.8,0.0699054]
[1734977579483,5.97852,3345.3,3343.8,0.0699054]
[1734977579676,2.98982,3344.7,3343.8,0.0699054]
[1734977579876,2.98982,3344.7,3343.8,0.45209094]
[1734977580922,3.0,3344.9,3343.9,0.0299036]
[1734977581090,3.0,3344.8,3343.7,3.75177]
[1734977581295,3.0,3344.8,3343.8,0.07044936]
[1734977581784,3.0,3345.1,3343.8,0.07044936]
[1734977581983,0.57860657,3345.0,3343.8,0.07044936]
[1734977582180,2.98972,3344.8,3343.8,0.07044936]
[1734977582410,3.0,3344.9,3343.8,0.07044936]
[1734977582584,0.57860657,3345.0,3343.8,0.07044936]
[1734977583219,0.57860657,3345.0,3343.8,3.06102936]
[1734977583418,2.98949,3345.1,3343.9,3.76181]
[1734977583821,0.7821,3345.4,3344.1,0.7713]
[1734977584025,3.77136,3345.4,3344.2,2.99024]
[1734977584194,2.98926,3345.4,3344.3,0.7713]
[1734977584397,3.38487943,3345.4,3344.3,1.15447495]
[1734977584697,3.0,3345.3,3344.4,0.07008963]
[1734977585233,2.98919,3345.4,3344.4,0.07008963]
[1734977585997,2.98919,3345.4,3344.5,0.7966]
[1734977586400,0.8329,3345.3,3344.6,0.06989052]
[1734977586630,2.9898,3344.7,3344.6,0.06989052]
[1734977586834,2.9898,3344.7,3344.2,0.7966]
[1734977587034,2.98963,3344.9,3344.2,0.7966]
[1734977587338,2.99007,3344.4,3344.3,0.07002545]
[1734977587691,2.99007,3344.4,3343.8,0.7966]
[1734977587905,2.99007,3344.4,3343.9,0.07025471]
[1734977588142,2.99007,3344.4,3343.8,0.7966]
[1734977588448,2.98989,3344.7,3343.8,0.7966]
[1734977588449,2.99019,3344.3,3343.8,0.7966]
[1734977588762,4.049063,3344.9,3343.9,0.07025471]
[1734977588899,3.0,3344.9,3344.0,0.55]
[1734977589262,5.98969,3344.9,3344.1,0.07028269]
[1734977589400,0.681,3344.9,3344.1,0.07028269]
[1734977589604,2.99005,3344.5,3344.1,0.07028269]
[1734977589839,2.98982,3344.7,3343.8,0.7966]
[1734977590047,3.0,3344.8,3343.9,0.55]
[1734977590214,3.0,3344.8,3344.1,0.55]
[1734977590599,5.98972,3344.8,3344.2,0.07017255]
[1734977590794,2.98972,3344.8,3344.2,0.07017255]
[1734977592302,2.98956,3345.0,3344.3,0.8179]
[1734977592496,2.98935,3345.2,3344.4,0.06989949]
[1734977592702,0.7952,3345.6,3344.3,0.8179]
[1734977592703,3.78424,3345.6,3344.3,0.8179]
[1734977592949,2.98953,3345.0,3344.4,0.06989949]
[1734977594263,2.98934,3345.3,3344.5,0.55]
[1734977594550,4.21541597,3345.5,3344.6,0.89174325]
[1734977594839,4.21541597,3345.5,3344.7,0.44317033]
[1734977595145,4.21541597,3345.5,3344.8,0.06963333]
[1734977595530,1.22631597,3345.5,3345.0,0.8053]
[1734977595726,1.22631597,3345.5,3345.1,0.06946147]
[1734977596040,1.22631597,3345.5,3345.0,0.8053]
[1734977596249,1.22631597,3345.5,3345.1,2.98941]
[1734977596451,1.39885027,3345.7,3345.3,0.7681]
[1734977596747,1.39885027,3345.7,3345.4,0.06928965]
[1734977597163,1.39885027,3345.7,3345.3,0.7681]
[1734977597501,1.39885027,3345.7,3345.4,0.06928965]
[1734977598249,0.1725343,3345.7,3345.4,0.06928965]
[1734977598404,3.1614443,3345.7,3345.3,0.7681]
[1734977598821,3.1614443,3345.7,3345.4,0.06928965]
[1734977599016,0.1725343,3345.7,3345.4,0.06928965]
[1734977599354,0.1725343,3345.7,3345.3,0.7681]
[1734977599355,0.1725343,3345.7,3345.5,0.06923238]
[1734977599711,0.1725343,3345.7,3345.3,0.7681]
[1734977599905,2.9891,3345.5,3345.4,0.06928965]
[1734977600220,2.9891,3345.5,3344.8,0.7906]
[1734977600416,3.1614543,3345.7,3344.8,1.76466]
[1734977600619,0.1725343,3345.7,3344.9,0.06957604]
[1734977600848,0.1725343,3345.7,3344.9,3.05916604]
[1734977601053,0.1725343,3345.7,3344.9,0.06957604]
[1734977602802,2.98901,3345.6,3344.8,0.7906]
[1734977603005,0.1725343,3345.7,3345.0,0.06951876]
[1734977603255,0.1725343,3345.7,3344.9,0.378044]
[1734977603256,0.1725343,3345.7,3344.9,0.44762004]
[1734977603434,0.1725343,3345.7,3345.1,0.06946147]
[1734977603642,0.1725343,3345.7,3345.0,0.06951876]
[1734977603854,0.1725343,3345.7,3345.2,0.0694042]
[1734977604026,0.1725343,3345.7,3345.1,0.06946147]
[1734977604255,0.1725343,3345.7,3345.3,0.06897726]
[1734977604464,0.1725343,3345.7,3345.2,0.06903453]
[1734977604616,0.1725343,3345.7,3345.4,0.06891998]
[1734977604617,2.9891,3345.5,3345.4,0.06891998]
[1734977604963,2.9891,3345.5,3344.8,0.7906]
[1734977605314,2.9891,3345.5,3344.9,0.06920637]
[1734977606013,3.1614543,3345.7,3344.9,0.06920637]
[1734977606372,0.1725343,3345.7,3345.2,0.55]
[1734977606541,0.1725343,3345.7,3345.1,0.55]
[1734977606868,0.1725343,3345.7,3345.3,0.06897726]
[1734977607048,0.1725343,3345.7,3345.3,0.7518]
[1734977607356,0.1725343,3345.7,3345.4,0.06891998]
[1734977607854,0.1725343,3345.7,3345.5,0.38399289]
[1734977608366,0.1725343,3345.7,3345.6,0.06843054]
[1734977608710,3.1614443,3345.7,3345.3,0.7518]
[1734977609044,0.1725343,3345.7,3345.4,0.06854508]
[1734977610239,0.1725343,3345.7,3345.3,0.7518]
[1734977610439,0.1725343,3345.7,3345.5,0.06848781]
[1734977610646,0.1725343,3345.7,3345.4,0.06854508]
[1734977610818,0.1725343,3345.7,3345.6,0.06843054]
[1734977611011,0.1725343,3345.7,3345.5,0.06848781]
[1734977611249,0.1725343,3345.7,3345.3,0.7518]
[1734977611761,0.1725343,3345.7,3345.4,0.44265708]
[1734977612255,0.1725343,3345.7,3345.4,3.46167568]
[1734977612458,0.1725343,3345.7,3345.4,3.43178708]
[1734977612750,0.1725343,3345.7,3345.4,3.46167547]
[1734977612942,0.1725343,3345.7,3345.4,3.43178708]
[1734977613141,0.1725343,3345.7,3345.5,0.41835871]
[1734977613550,0.1725343,3345.7,3345.6,0.06843054]
[1734977614265,0.1725343,3345.7,3345.6,0.82053054]
[1734977615228,0.1725343,3345.7,3345.6,3.80953054]
[1734977615632,0.1725343,3345.7,3345.6,13.30953054]
[1734977615827,0.1725343,3345.7,3345.6,15.19656735]
[1734977616441,1.22631597,3346.5,3346.4,3.76958]
[1734977616719,1.22631597,3346.5,3346.4,3.8372675]
[1734977617120,2.9874,3347.4,3346.4,3.8372675]
[1734977617121,1.22631597,3347.2,3346.4,3.8372675]
[1734977617469,3.76299,3347.1,3346.4,0.0676875]
[1734977617633,2.98807,3346.7,3346.4,0.0676875]
[1734977617826,0.7753,3347.1,3345.8,2.98875]
[1734977617827,2.98785,3346.9,3345.8,2.98875]
[1734977618129,3.0,3347.0,3346.0,0.7975]
[1734977618329,3.35598932,3347.3,3346.2,2.98839]
[1734977618330,9.75525289,3347.3,3346.2,2.98839]
[1734977618537,6.75525289,3347.3,3346.3,0.44577967]
[1734977618843,2.98768,3347.1,3346.3,0.44577967]
[1734977619047,6.75522289,3347.3,3346.3,0.44577967]
[1734977619245,3.76772289,3347.3,3346.3,0.44577967]
[1734977619423,2.9877,3347.1,3346.3,0.44577967]
[1734977619759,2.9877,3347.1,3346.4,0.34342597]
[1734977619918,3.7753,3347.5,3346.5,0.7599]
[1734977620324,2.98739,3347.4,3346.6,0.06701897]
[1734977621035,1.22631597,3347.7,3346.6,0.06701897]
[1734977621036,2.98723,3347.6,3346.6,0.06701897]
[1734977621246,2.98721,3347.6,3346.6,0.06701897]
[1734977621549,2.98801,3346.7,3346.6,0.06701897]
[1734977621858,2.98787,3346.9,3346.6,0.06701897]
[1734977622016,2.98787,3346.9,3346.2,0.8014]
[1734977622017,2.98769,3347.1,3346.2,0.8014]
[1734977622223,2.98769,3347.1,3346.7,0.06694064]
[1734977622552,2.98769,3347.1,3346.8,0.06687814]
[1734977623076,2.98769,3347.1,3346.2,0.8014]
[1734977623278,2.98769,3347.1,3346.3,0.378994]
[1734977623422,4.15195932,3347.5,3346.3,0.44615829]
[1734977623628,2.98799,3346.8,3346.3,0.06716429]
[1734977623821,2.9879,3346.9,3346.3,0.06716429]
[1734977624072,2.98794,3346.8,3346.3,0.06716429]
[1734977624279,2.98775,3347.0,3346.3,0.06716429]
[1734977624573,2.98775,3347.0,3346.3,0.45288172]
[1734977625279,2.98791,3346.9,3346.3,0.06716429]
[1734977627072,2.98768,3347.1,3346.3,0.06716429]
[1734977628131,0.8086,3347.5,3346.3,0.06716429]
[1734977628328,2.98734,3347.5,3346.6,0.7531]
[1734977628560,2.98741,3347.4,3346.6,0.7531]
[1734977628727,2.98741,3347.4,3346.7,0.06700394]
[1734977628929,2.98741,3347.4,3346.6,0.7531]
[1734977629182,2.98741,3347.4,3346.7,0.44114094]
[1734977630224,2.98713,3347.7,3346.7,0.44114094]
[1734977630425,2.98713,3347.7,3346.7,3.05500394]
[1734977631023,1.99671597,3347.9,3346.7,0.06700394]
[1734977631224,4.98373597,3347.9,3346.9,0.7739]
[1734977631482,4.21333597,3347.9,3346.9,0.7739]
[1734977631782,2.9871,3347.8,3347.0,0.06621492]
[1734977631946,2.9871,3347.8,3347.0,0.44900841]
[1734977632147,1.22631597,3347.9,3347.0,3.43670841]
[1734977632345,1.22631597,3347.9,3347.1,0.8221]
[1734977632553,4.21301597,3348.2,3347.2,3.05338477]
[1734977632776,4.21301597,3348.2,3347.3,0.8221]
[1734977632982,4.21301597,3348.2,3347.4,0.38754848]
[1734977633182,1.22631597,3348.2,3347.4,0.45332885]
[1734977633499,1.22631597,3348.2,3347.8,0.8221]
[1734977634024,1.22631597,3348.2,3347.9,0.0654944]
[1734977634351,4.82598396,3348.4,3347.9,0.0654944]
[1734977634352,2.98651,3348.4,3347.9,0.0654944]
[1734977634851,1.22631597,3348.7,3348.0,3.80003]
[1734977635187,1.22631597,3348.7,3348.2,0.8132]
[1734977635367,1.22631597,3348.7,3348.3,0.38649288]
[1734977635564,1.22631597,3348.7,3348.3,0.45133673]
[1734977635982,0.1725343,3349.0,3348.3,3.43786673]
[1734977636176,0.1725343,3349.0,3348.4,0.8132]
[1734977636470,0.1725343,3349.0,3348.6,0.823]
[1734977636669,0.1725343,3349.0,3348.9,0.823]
[1734977636870,0.1725343,3349.0,3348.9,1.203931]
[1734977637070,0.1725343,3349.0,3348.9,1.2680366]
[1734977637406,0.1725343,3349.0,3348.9,13.7540866]
[1734977637612,0.1725343,3349.0,3348.9,16.7540866]
[1734977638548,0.1725343,3349.0,3348.9,20.71530443]
[1734977638753,0.1725343,3349.0,3348.9,16.7540866]
[1734977639200,0.1725343,3349.0,3348.9,20.71530443]
[1734977639511,1.22631597,3350.4,3350.2,0.8213]
[1734977639692,1.22631597,3350.4,3350.3,7.83823]
[1734977639872,1.22631597,3351.5,3350.4,0.8213]
[1734977640075,1.22631597,3351.5,3350.5,2.9846]
[1734977640408,2.984,3351.2,3350.5,0.05880999]
[1734977640816,0.7763,3351.3,3350.5,0.05880999]
[1734977640954,2.98432,3350.9,3350.5,0.05880999]
[1734977641693,2.98409,3351.1,3350.5,0.05880999]
[1734977641896,0.7849,3351.4,3350.5,0.05880999]
[1734977642210,0.7849,3351.4,3350.0,0.7935]
[1734977642211,2.98417,3351.1,3350.0,0.7935]
[1734977642410,0.7849,3351.4,3350.6,0.05824823]
[1734977642589,0.7849,3351.4,3350.0,0.7935]
[1734977642590,2.98445,3350.7,3350.0,0.7935]
[1734977642794,0.7849,3351.4,3350.0,0.7935]
[1734977643006,2.9848,3350.3,3350.1,0.0586441]
[1734977643237,2.98464,3350.5,3350.1,0.0586441]
[1734977643517,0.7531,3350.7,3349.8,3.96121783]
[1734977643734,2.98472,3350.4,3350.2,0.05860277]
[1734977643937,2.98418,3351.0,3349.8,3.96121783]
[1734977644091,2.98435,3350.9,3349.9,0.77581378]